bitfinex-derivatives/quotes_SOLF0:USTF0_20260312
["timestamp","ask_amount","ask_price","bid_price","bid_amount"]
[1773308523341,10.467,85.978,85.933,3.8602237]
[1773308523743,10.467,85.978,85.94,2.5296836]
[1773308524143,3.76311069,85.979,85.941,3.8602237]
[1773308525845,3.76311069,85.979,85.942,10.471]
[1773308526445,3.76311069,85.992,85.951,3.8602237]
[1773308526641,10.464,85.998,85.951,3.8602237]
[1773308527750,3.76311069,86.004,85.955,3.8602237]
[1773308528144,3.76311069,85.993,85.942,10.471]
[1773308528444,3.76311069,85.993,85.943,3.8602237]
[1773308528742,3.76311069,85.993,85.945,3.8602237]
[1773308528948,3.76311069,85.993,85.95,2.52358816]
[1773308529149,3.76311069,85.993,85.945,3.8602237]
[1773308529849,3.76311069,85.993,85.948,3.8602237]
[1773308530242,3.76311069,85.992,85.948,3.8602237]
[1773308531852,10.464,86.002,85.953,10.47]
[1773308532044,3.76311069,86.005,85.961,3.8602237]
[1773308533153,3.76311069,86.005,85.962,3.8602237]
[1773308533851,3.76311069,86.005,85.965,10.468]
[1773308534446,3.76311069,86.011,85.966,3.8602237]
[1773308534644,3.76311069,86.011,85.97,2.52358816]
[1773308535550,3.76311069,86.011,85.97,6.38381186]
[1773308535849,3.76311069,86.011,85.97,3.8602237]
[1773308536455,3.76311069,86.007,85.956,14.3292237]
[1773308537962,3.76311069,86.004,85.956,14.3292237]
[1773308538957,3.76311069,86.004,85.956,3.8602237]
[1773308540659,3.76311069,86.004,85.959,10.469]
[1773308542362,3.76311069,86.004,85.966,10.468]
[1773308543158,4.06733138,86.019,85.968,3.7365331]
[1773308543358,4.06733138,86.019,85.971,3.7365331]
[1773308544563,4.06733138,86.019,85.98,10.466]
[1773308545857,4.06733138,86.019,85.986,10.466]
[1773308546062,4.06733138,86.019,85.971,3.7365331]
[1773308546855,4.06733138,86.019,85.973,10.467]
[1773308548267,4.06733138,86.019,85.973,14.2035331]
[1773308548567,4.06733138,86.019,85.977,10.467]
[1773308549864,4.06733138,86.019,85.981,10.466]
[1773308550062,4.06733138,86.019,85.982,3.7365331]
[1773308551873,4.06733138,86.019,85.985,10.466]
[1773308552170,4.06733138,86.019,85.971,3.7365331]
[1773308552365,4.06733138,86.019,85.985,10.466]
[1773308552564,4.06733138,86.019,85.971,3.7365331]
[1773308553266,4.06733138,86.017,85.971,3.7365331]
[1773308554774,4.06733138,86.017,85.979,10.467]
[1773308555668,4.06733138,86.015,85.972,10.467]
[1773308556174,4.06733138,86.015,85.971,3.7365331]
[1773308556974,4.06733138,86.015,85.98,10.466]
[1773308562971,4.06733138,86.015,85.95,43.94]
[1773308562972,3.82910418,86.026,85.982,14.21319475]
[1773308563871,10.461,86.025,85.982,14.21319475]
[1773308564067,3.82910418,86.024,85.982,14.21319475]
[1773308564869,3.82910418,86.022,85.982,14.21319475]
[1773308565877,3.82910418,86.022,85.971,3.74719475]
[1773308566679,3.82910418,86.022,85.972,3.74719475]
[1773308567880,3.82910418,86.02,85.978,10.467]
[1773308568877,3.82910418,86.018,85.978,10.467]
[1773308569274,3.82910418,86.048,85.99,2.52358816]
[1773308569579,3.82910418,86.039,85.991,3.74719475]
[1773308570881,3.87998709,86.036,85.992,10.465]
[1773308571982,3.87998709,86.034,85.992,10.465]
[1773308572383,3.87998709,86.029,85.991,3.74719475]
[1773308573182,3.87998709,86.029,85.971,3.68138875]
[1773308573985,3.87998709,86.026,85.982,3.68138875]
[1773308574889,10.461,86.024,85.982,3.68138875]
[1773308575091,3.87998709,86.023,85.982,3.68138875]
[1773308575584,3.87998709,86.021,85.982,3.68138875]
[1773308576892,10.462,86.02,85.982,3.68138875]
[1773308577490,3.87998709,86.021,85.982,3.68138875]
[1773308578392,3.87998709,86.026,85.982,3.68138875]
[1773308578983,3.87998709,86.026,85.98,2.52358816]
[1773308578984,3.87998709,86.023,85.984,3.68138875]
[1773308579785,3.87998709,86.023,85.987,10.466]
[1773308579990,3.87998709,86.023,85.988,3.68138875]
[1773308580192,3.87998709,86.035,85.988,3.68138875]
[1773308580393,10.46,86.033,85.992,3.68138875]
[1773308580991,3.87998709,86.032,85.992,3.68138875]
[1773308589002,14.34098709,86.03,85.992,3.68138875]
[1773308589397,3.87998709,86.029,85.992,3.68138875]
[1773308591609,14.34098709,86.028,85.992,3.68138875]
[1773308592109,3.87998709,86.028,85.994,10.465]
[1773308592611,3.87998709,86.028,85.994,14.14638875]
[1773308598012,3.87998709,86.026,85.988,10.466]
[1773308598214,3.87998709,86.026,85.988,3.68138875]
[1773308599611,10.461,86.025,85.993,10.465]
[1773308602119,3.70307609,86.021,85.987,10.466]
[1773308602319,3.70307609,86.021,85.98,2.52191929]
[1773308602320,3.70307609,86.021,85.988,4.03083446]
[1773308603223,3.70307609,86.021,85.989,4.03083446]
[1773308604917,3.70307609,86.021,85.991,10.465]
[1773308605318,3.70307609,86.047,85.992,4.03083446]
[1773308606619,3.70307609,86.035,85.992,4.03083446]
[1773308607914,3.70307609,86.027,85.992,4.03083446]
[1773308608320,3.70307609,86.027,85.979,4.03083446]
[1773308609922,14.16507609,86.016,85.979,4.03083446]
[1773308611032,14.16507609,86.016,85.981,4.03083446]
[1773308611625,14.16507609,86.014,85.981,4.03083446]
[1773308613431,3.70307609,86.008,85.973,10.467]
[1773308614127,3.70307609,86.021,85.976,4.03083446]
[1773308614526,3.70307609,86.021,85.981,4.03083446]
[1773308614726,3.70307609,86.039,85.981,4.03083446]
[1773308615329,3.70307609,86.039,85.99,14.49583446]
[1773308616732,3.70307609,86.037,85.991,4.03083446]
[1773308616926,10.461,86.029,85.991,4.03083446]
[1773308617531,3.70307609,86.048,85.993,4.03083446]
[1773308617830,14.43856028,86.074,85.964,43.92]
[1773308617831,8.97115768,86.06,86.011,4.03083446]
[1773308618029,8.97040104,86.069,86.025,4.03083446]
[1773308618227,8.97040104,86.069,85.985,20.932]
[1773308618228,3.70307609,86.079,86.04,6.55275375]
[1773308618428,3.70307609,86.079,86.041,4.03083446]
[1773308618623,3.70307609,86.092,86.051,4.03083446]
[1773308618820,3.70307609,86.102,86.051,4.03083446]
[1773308619623,3.70307609,86.102,86.061,4.03083446]
[1773308619824,10.452,86.101,86.061,4.03083446]
[1773308621532,10.453,86.093,86.061,4.03083446]
[1773308621728,3.70307609,86.089,86.037,4.03083446]
[1773308621930,3.70307609,86.089,85.976,34.98]
[1773308621931,3.70307609,86.109,86.061,4.03083446]
[1773308622829,10.452,86.102,86.061,4.03083446]
[1773308623031,3.70307609,86.109,86.061,4.03083446]
[1773308623237,3.97816772,86.099,86.061,4.03083446]
[1773308623532,10.454,86.084,86.061,4.03083446]
[1773308623740,10.454,86.084,86.041,3.95042988]
[1773308624032,3.97816772,86.099,86.009,43.92]
[1773308624033,3.97816772,86.099,86.051,3.95042988]
[1773308624233,10.452,86.098,86.051,3.95042988]
[1773308624630,3.97816772,86.099,86.051,3.95042988]
[1773308625237,3.97816772,86.109,86.051,3.95042988]
[1773308625436,10.453,86.089,86.051,3.95042988]
[1773308625636,14.43116772,86.089,86.051,3.95042988]
[1773308626340,10.454,86.082,86.051,3.95042988]
[1773308627339,10.455,86.074,86.031,3.95042988]
[1773308628631,10.454,86.084,86.034,3.95042988]
[1773308628835,10.454,86.084,86.041,3.95042988]
[1773308629436,10.455,86.076,86.041,3.95042988]
[1773308631237,3.97816772,86.089,86.041,3.95042988]
[1773308631238,10.454,86.084,86.041,3.95042988]
[1773308631438,2.52191929,86.1,86.041,3.95042988]
[1773308631636,3.97399339,86.103,86.051,3.89468592]
[1773308631936,10.453,86.093,86.052,3.89468592]
[1773308632137,3.97399339,86.103,86.052,3.89468592]
[1773308632340,3.97399339,86.119,86.071,3.89468592]
[1773308632839,10.452,86.101,86.071,3.89468592]
[1773308633035,3.97399339,86.119,86.071,3.89468592]
[1773308634934,3.97399339,86.115,86.071,3.89468592]
[1773308635942,10.45,86.113,86.071,3.89468592]
[1773308636140,6.49591268,86.11,86.071,3.89468592]
[1773308636439,3.97399339,86.099,86.058,3.89468592]
[1773308639347,10.451,86.109,86.06,3.89468592]
[1773308639651,14.42499339,86.109,86.06,3.89468592]
[1773308639845,3.97399339,86.108,86.06,3.89468592]
[1773308640843,10.451,86.107,86.062,3.89468592]
[1773308641048,14.42499339,86.107,86.062,3.89468592]
[1773308641447,3.97399339,86.12,86.072,3.89468592]
[1773308641647,3.97399339,86.139,86.081,3.89468592]
[1773308642548,43.9,86.18,86.042,43.9]
[1773308642549,3.97399339,86.194,86.091,3.89468592]
[1773308642853,3.97399339,86.194,86.15,2.52191929]
[1773308643049,2.52191929,86.21,86.154,3.89468592]
[1773308643249,2.52191929,86.21,86.161,3.89468592]
[1773308643448,0.00061167,86.206,86.171,3.89468592]
[1773308643749,0.00061167,86.206,86.185,3.89468592]
[1773308644152,0.00061167,86.206,86.161,3.89468592]
[1773308644552,0.00061167,86.206,86.18,2.52191929]
[1773308644750,0.00061167,86.206,86.18,3.89468592]
[1773308646261,0.00061167,86.206,86.181,3.89468592]
[1773308647158,0.00061167,86.206,86.191,3.89468592]
[1773308647562,3.97399339,86.304,86.191,3.89468592]
[1773308647763,162.122,86.35,86.149,43.88]
[1773308647764,3.97399339,86.347,86.201,3.89468592]
[1773308647966,3.97399339,86.347,86.199,162.406]
[1773308647967,3.97399339,86.347,86.281,3.89468592]
[1773308648161,43.88,86.4,86.281,3.89468592]
[1773308648162,3.97399339,86.339,86.281,3.89468592]
[1773308648561,2.52191929,86.34,86.248,43.88]
[1773308648562,3.97399339,86.356,86.301,3.89468592]
[1773308648766,3.97399339,86.356,86.286,3.89468592]
[1773308649063,2.52191929,86.33,86.286,3.89468592]
[1773308649268,3.97399339,86.357,86.286,3.89468592]
[1773308649469,2.52191929,86.35,86.291,3.89468592]
[1773308649657,3.97399339,86.42,86.291,3.89468592]
[1773308649860,3.97399339,86.364,86.291,3.89468592]
[1773308650363,3.97399339,86.362,86.291,3.89468592]
[1773308650768,3.97399339,86.398,86.301,3.89468592]
[1773308650971,3.97399339,86.395,86.301,3.89468592]
[1773308651171,3.97399339,86.42,86.326,3.89468592]
[1773308651371,3.97399339,86.409,86.326,3.89468592]
[1773308651675,3.97399339,86.404,86.326,3.89468592]
[1773308652271,3.97399339,86.391,86.326,3.89468592]
[1773308652477,3.97399339,86.42,86.326,3.89468592]
[1773308652671,3.97399339,86.42,86.331,3.89468592]
[1773308652866,15.73727881,86.421,86.33,6.2601166]
[1773308652867,15.73727881,86.421,86.356,3.89468592]
[1773308653171,3.97399339,86.458,86.35,6.2601166]
[1773308653369,43.84,86.501,86.332,43.84]
[1773308653370,9.27122613,86.439,86.332,43.84]
[1773308653875,9.27122613,86.433,86.352,10.421]
[1773308654076,9.27122613,86.459,86.35,6.2601166]
[1773308654371,9.27122607,86.457,86.363,10.42]
[1773308654570,9.27122607,86.457,86.37,6.2601166]
[1773308655067,9.27122607,86.457,86.32,162.178]
[1773308655068,9.27122607,86.457,86.35,6.2601166]
[1773308655274,9.27122607,86.457,86.13,50.50114322]
[1773308655275,9.27122607,86.439,86.344,43.82]
[1773308655469,9.27122607,86.439,86.358,10.421]
[1773308655674,9.27122607,86.439,86.35,6.2601166]
[1773308655874,9.34087426,86.457,86.37,6.2601166]
[1773308656279,9.34087426,86.457,86.35,6.2601166]
[1773308656572,9.34087426,86.457,86.37,6.2601166]
[1773308656770,9.3408742,86.475,86.37,6.2601166]
[1773308657167,9.3408742,86.458,86.37,6.2601166]
[1773308657366,9.3408742,86.458,86.371,43.8]
[1773308657573,9.3408742,86.458,86.355,43.8]
[1773308657777,9.24251617,86.438,86.355,43.8]
[1773308657970,9.24251617,86.438,86.344,10.422]
[1773308658175,9.24251617,86.438,86.35,6.2601166]
[1773308658578,9.24251612,86.461,86.37,6.2601166]
[1773308659178,9.24251612,86.455,86.36,6.2601166]
[1773308659375,9.22762339,86.449,86.351,43.78]
[1773308659678,19.63962339,86.43,86.351,43.78]
[1773308660374,9.22762339,86.429,86.351,43.78]
[1773308660776,10.411,86.44,86.364,10.42]
[1773308662274,9.20107174,86.439,86.364,10.42]
[1773308662675,9.20107169,86.434,86.351,10.422]
[1773308663677,9.20107169,86.434,86.363,10.42]
[1773308663976,9.20107169,86.434,86.348,43.76]
[1773308664375,9.20107169,86.434,86.348,78.74]
[1773308664572,9.20976051,86.454,86.36,6.2601166]
[1773308664879,9.20976051,86.454,86.361,34.98]
[1773308665273,9.20976051,86.449,86.361,34.98]
[1773308665679,9.20976051,86.449,86.362,43.76]
[1773308665974,9.1898023,86.442,86.367,10.419]
[1773308666181,9.1898023,86.442,86.362,43.76]
[1773308666776,9.1898023,86.442,86.351,43.76]
[1773308668579,9.20282791,86.509,86.36,6.2601166]
[1773308668785,9.20282791,86.489,86.38,6.2601166]
[1773308668974,217.50337087,86.538,86.351,43.76]
[1773308668975,9.20282791,86.508,86.401,34.98]
[1773308669178,9.20282791,86.499,86.402,43.74]
[1773308669784,9.18633943,86.484,86.421,10.413]
[1773308670082,9.18633943,86.503,86.402,43.74]
[1773308670283,9.18633943,86.503,86.41,6.2601166]
[1773308670479,9.1863394,86.522,86.411,43.74]
[1773308670684,9.1863394,86.522,86.43,6.2601166]
[1773308671080,9.1863394,86.517,86.412,43.74]
[1773308671477,9.1863394,86.517,86.43,6.2601166]
[1773308672684,9.1863394,86.517,86.412,43.74]
[1773308672685,9.1863394,86.517,86.417,34.72]
[1773308672884,323.328,86.595,86.417,34.72]
[1773308672885,9.20414641,86.559,86.45,6.2601166]
[1773308673083,10.401,86.526,86.459,10.408]
[1773308673283,9.20414641,86.525,86.459,10.408]
[1773308673582,6.2601166,86.56,86.412,43.74]
[1773308673583,10.399,86.539,86.473,10.407]
[1773308673786,9.19138822,86.538,86.444,43.74]
[1773308673993,9.19138822,86.538,86.445,43.74]
[1773308674181,9.19138822,86.509,86.41,6.2601166]
[1773308674386,9.19138822,86.509,86.411,43.72]
[1773308674587,9.19138819,86.499,86.396,43.72]
[1773308675281,9.19138819,86.486,86.396,43.72]
[1773308675687,9.19138819,86.486,86.4,6.2601166]
[1773308675879,9.21143307,86.519,86.4,6.2601166]
[1773308676085,9.21143307,86.519,86.42,6.2601166]
[1773308676283,9.21143307,86.519,86.44,6.2601166]
[1773308676888,9.21143307,86.519,86.461,10.408]
[1773308677294,9.21143307,86.519,86.43,6.2601166]
[1773308677590,10.402,86.51,86.45,10.41]
[1773308677790,9.20182842,86.509,86.41,6.2601166]
[1773308678090,9.20182842,86.508,86.446,10.41]
[1773308678687,9.20182842,86.508,86.454,10.409]
[1773308679682,9.20182842,86.508,86.463,10.408]
[1773308679886,9.20409177,86.527,86.463,10.408]
[1773308681394,9.20409174,86.524,86.463,10.408]
[1773308681593,9.20409174,86.524,86.43,6.2601166]
[1773308681993,9.21777448,86.52,86.43,6.2601166]
[1773308682186,9.21777448,86.52,86.431,43.7]
[1773308682592,9.21777445,86.516,86.431,43.7]
[1773308682893,9.21777445,86.516,86.45,6.2601166]
[1773308683692,9.21777445,86.516,86.464,10.408]
[1773308684291,9.22316938,86.514,86.455,10.409]
[1773308684491,9.22316938,86.514,86.422,34.72]
[1773308684690,9.22316938,86.514,86.43,6.2601166]
[1773308685296,9.22316935,86.512,86.43,6.2601166]
[1773308685496,9.22316935,86.512,86.431,43.7]
[1773308685893,9.22509385,86.509,86.432,34.72]
[1773308686096,9.22509385,86.509,86.431,43.7]
[1773308686499,9.22509385,86.509,86.455,10.409]
[1773308687396,9.22509385,86.509,86.462,10.408]
[1773308688198,9.22509385,86.509,86.44,6.2601166]
[1773308688402,9.21968651,86.539,86.44,6.2601166]
[1773308688797,9.21968651,86.539,86.441,43.7]
[1773308689000,43.7,86.581,86.443,20.821]
[1773308689001,9.21968651,86.536,86.443,20.821]
[1773308689504,9.1722941,86.526,86.478,10.406]
[1773308689899,10.401,86.525,86.47,10.407]
[1773308690103,9.1722941,86.524,86.47,10.407]
[1773308690699,9.17244324,86.542,86.46,6.2601166]
[1773308691400,9.17244324,86.523,86.441,43.7]
[1773308691596,9.17244324,86.523,86.427,43.7]
[1773308692105,9.12370958,86.5,86.427,43.7]
[1773308692702,9.12370955,86.497,86.441,10.411]
[1773308692897,9.12370955,86.497,86.427,43.7]
[1773308693305,9.12370955,86.486,86.427,43.7]
[1773308694101,161.717,86.567,86.427,43.7]
[1773308694102,9.09004,86.529,86.427,43.7]
[1773308694398,9.09004,86.506,86.417,20.828]
[1773308694796,9.09004,86.506,86.418,43.7]
[1773308695204,9.09003998,86.497,86.45,10.41]
[1773308695403,9.09003998,86.497,86.418,43.7]
[1773308695902,9.09003998,86.497,86.444,10.41]
[1773308696098,9.09003998,86.497,86.418,43.7]
[1773308696303,9.09003998,86.497,86.448,10.41]
[1773308696505,9.09003998,86.497,86.418,43.7]
[1773308697311,9.0811008,86.493,86.446,10.41]
[1773308697610,9.0811008,86.493,86.42,6.2601166]
[1773308698110,9.0811008,86.493,86.421,43.7]
[1773308699012,9.00608859,86.489,86.438,10.411]
[1773308699201,9.00608859,86.489,86.416,43.7]
[1773308700304,9.00961169,86.47,86.416,43.7]
[1773308700504,9.00961169,86.47,86.389,43.7]
[1773308700806,9.00961169,86.47,86.4,6.2601166]
[1773308701012,9.00961168,86.486,86.401,43.7]
[1773308701516,9.00961168,86.486,86.42,6.2601166]
[1773308702005,9.00961168,86.486,86.42,43.7]
[1773308702606,9.00961168,86.486,86.445,10.41]
[1773308702808,6.2601166,86.55,86.44,6.2601166]
[1773308703006,10.401,86.523,86.467,10.408]
[1773308703305,6.2601166,86.55,86.44,6.2601166]
[1773308703514,10.4,86.534,86.473,10.407]
[1773308703713,6.2601166,86.55,86.473,10.407]
[1773308704713,4.48755398,86.549,86.473,10.407]
[1773308704921,4.48755398,86.525,86.463,10.408]
[1773308705622,4.44915872,86.53,86.44,6.2601166]
[1773308705921,4.44915872,86.559,86.48,6.2601166]
[1773308706514,4.44915871,86.577,86.469,34.72]
[1773308706814,4.44915871,86.577,86.431,28.20451067]
[1773308706815,8.56839707,86.632,86.521,3.68162034]
[1773308707015,2.01069482,86.636,86.561,3.68161996]
[1773308707213,1.73066271,86.69,86.561,3.68161996]
[1773308707410,7.99077931,86.69,86.581,3.63436447]
[1773308707613,1.73066271,86.69,86.601,3.63436447]
[1773308707810,1.73066271,86.69,86.603,3.63436447]
[1773308708018,6.2601166,86.67,86.571,3.63433204]
[1773308708213,6.2601166,86.65,86.56,43.7]
[1773308708416,6.2601166,86.65,86.561,3.63433435]
[1773308708616,1.73066271,86.69,86.561,3.63433435]
[1773308708812,3.90194242,86.679,86.571,3.63433435]
[1773308709015,3.90194242,86.679,86.591,3.63433435]
[1773308709212,3.90194242,86.679,86.611,10.39]
[1773308709415,3.90194242,86.679,86.612,3.28487847]
[1773308709822,3.90194242,86.679,86.581,3.28487847]
[1773308710024,3.90194242,86.679,86.588,3.28487847]
[1773308710426,3.90194242,86.679,86.613,3.28487847]
[1773308710817,1.73066271,86.69,86.613,3.28487847]
[1773308711218,3.90194242,86.689,86.615,3.28487847]
[1773308711627,3.90194242,86.689,86.64,10.387]
[1773308711918,1.73066271,86.69,86.621,3.25249986]
[1773308712124,1.73066271,86.69,86.642,10.387]
[1773308712622,1.73066271,86.69,86.641,10.387]
[1773308713024,3.90194242,86.661,86.577,3.25249986]
[1773308713229,3.90194242,86.661,86.58,3.25249986]
[1773308713621,3.90194242,86.661,86.58,13.64649986]
[1773308713829,3.90194242,86.661,86.581,3.1975617]
[1773308714123,1.73066271,86.69,86.552,3.1975617]
[1773308714124,3.90194242,86.649,86.552,3.1975617]
[1773308714325,3.90194242,86.609,86.531,3.1975617]
[1773308714825,6.21184778,86.63,86.535,10.399]
[1773308714826,3.90194242,86.607,86.535,10.399]
[1773308715025,3.90194242,86.607,86.531,3.1975617]
[1773308715420,3.90194242,86.607,86.511,3.18822904]
[1773308715722,161.586,86.637,86.494,43.64]
[1773308715723,3.90194242,86.589,86.494,43.64]
[1773308716125,3.90194242,86.565,86.49,3.18822904]
[1773308716325,3.90194242,86.549,86.469,3.18822904]
[1773308716521,3.90194242,86.534,86.47,10.407]
[1773308716725,3.90194242,86.534,86.469,3.18822904]
[1773308717122,3.90194242,86.531,86.458,10.409]
[1773308717321,3.90194242,86.531,86.463,3.2501515]
[1773308718525,3.90194242,86.515,86.45,43.64]
[1773308718923,3.90194242,86.515,86.464,10.408]
[1773308719122,3.90194242,86.515,86.451,3.2501515]
[1773308720122,4.05188093,86.513,86.45,43.64]
[1773308720324,4.05188093,86.513,86.43,3.25096349]
[1773308720724,4.05188093,86.5,86.43,3.25096349]
[1773308721529,4.05188093,86.5,86.441,10.411]
[1773308723029,4.05188093,86.5,86.43,3.25096349]
[1773308723726,4.05188093,86.5,86.435,3.39657561]
[1773308723928,10.402,86.516,86.435,3.39657561]
[1773308724224,4.05188093,86.52,86.441,3.39657561]
[1773308725233,4.05188093,86.543,86.462,3.39657561]
[1773308726727,4.05188093,86.589,86.481,3.42101596]
[1773308726932,4.05188093,86.589,86.48,6.21184778]
[1773308726933,4.05188093,86.589,86.483,3.42101596]
[1773308727329,10.396,86.567,86.504,10.403]
[1773308727528,4.05188093,86.571,86.504,10.403]
[1773308727936,4.05188093,86.569,86.493,10.404]
[1773308728336,4.05188093,86.569,86.501,3.43661848]
[1773308729238,4.05188093,86.557,86.482,43.68]
[1773308729538,4.05188093,86.557,86.461,3.45408196]
[1773308730232,4.05188093,86.535,86.423,3.45408196]
[1773308730439,4.05188093,86.519,86.423,3.45408196]
[1773308730835,4.05188093,86.519,86.441,3.45408196]
[1773308731029,4.05188093,86.538,86.441,3.45408196]
[1773308731233,6.21184778,86.55,86.465,10.408]
[1773308731234,4.05188093,86.537,86.465,10.408]
[1773308731434,4.05188093,86.519,86.423,3.44342823]
[1773308731831,4.05188093,86.502,86.423,3.44342823]
[1773308732038,4.05188093,86.521,86.431,3.44342823]
[1773308732441,4.05188093,86.521,86.454,3.44342823]
[1773308732643,4.05188093,86.543,86.454,3.44342823]
[1773308733037,4.05188093,86.542,86.472,10.407]
[1773308733746,4.05188093,86.542,86.482,10.406]
[1773308734834,4.05188093,86.542,86.473,13.88304793]
[1773308735137,4.05188093,86.542,86.473,3.47604793]
[1773308735544,4.05188093,86.538,86.473,3.47604793]
[1773308736944,10.4,86.533,86.476,10.406]
[1773308737548,4.05188093,86.527,86.466,10.408]
[1773308738247,4.05188093,86.527,86.475,10.407]
[1773308739138,14.45188093,86.526,86.466,10.408]
[1773308739738,4.05188093,86.522,86.455,13.90321247]
[1773308739947,4.05188093,86.522,86.455,10.409]
[1773308740843,4.05188093,86.522,86.443,10.41]
[1773308740844,10.403,86.507,86.443,10.41]
[1773308741044,4.05188093,86.506,86.443,10.41]
[1773308741750,3.96665512,86.506,86.443,10.41]
[1773308741939,10.403,86.502,86.45,10.409]
[1773308742140,6.21184778,86.54,86.436,3.49767669]
[1773308742345,6.21184778,86.52,86.421,3.68622727]
[1773308742541,10.404,86.498,86.446,10.41]
[1773308742747,6.21184778,86.52,86.421,3.68622727]
[1773308742948,6.21184778,86.52,86.42,6.21184778]
[1773308742949,6.21184778,86.52,86.403,3.67699325]
[1773308743151,6.21184778,86.52,86.437,10.411]
[1773308743152,10.405,86.489,86.437,10.411]
[1773308743341,6.21184778,86.52,86.403,3.67699325]
[1773308743747,10.406,86.483,86.427,10.412]
[1773308744048,3.80301892,86.482,86.403,3.67699325]
[1773308744348,3.80301892,86.454,86.397,10.416]
[1773308745055,3.80301892,86.442,86.387,10.417]
[1773308745352,3.80301892,86.442,86.381,43.68]
[1773308745353,3.80301892,86.442,86.365,3.67699325]
[1773308746051,3.80301892,86.442,86.371,3.67699325]
[1773308746248,10.409,86.457,86.371,3.67699325]
[1773308746452,3.80301892,86.463,86.371,3.67699325]
[1773308746754,3.80301892,86.463,86.401,3.67699325]
[1773308747150,3.80301892,86.46,86.401,3.67699325]
[1773308747352,3.80301892,86.46,86.381,3.67699325]
[1773308748957,3.80301892,86.46,86.401,10.415]
[1773308749347,3.80301892,86.46,86.381,3.67699325]
[1773308750054,3.80301892,86.45,86.393,10.416]
[1773308750553,3.70959598,86.444,86.385,10.417]
[1773308750856,3.70959598,86.469,86.381,3.67699325]
[1773308751056,10.409,86.454,86.394,10.416]
[1773308751357,10.409,86.454,86.381,3.67699325]
[1773308751556,3.70959598,86.469,86.381,3.67699325]
[1773308751958,3.70959598,86.454,86.381,3.67699325]
[1773308752559,3.70959598,86.454,86.409,10.415]
[1773308752754,3.70959598,86.454,86.381,3.67699325]
[1773308753157,3.70959598,86.454,86.405,10.415]
[1773308753851,3.70959598,86.454,86.397,10.416]
[1773308754057,3.70959598,86.454,86.381,3.67699325]
[1773308754650,3.70959598,86.454,86.413,10.414]
[1773308755055,3.70959598,86.454,86.381,3.67699325]
[1773308755254,3.70959598,86.454,86.412,10.414]
[1773308755662,3.70959598,86.454,86.381,3.67699325]
[1773308755851,3.70959598,86.454,86.41,10.414]
[1773308756057,3.70959598,86.489,86.381,3.67699325]
[1773308756954,3.70959598,86.473,86.418,10.413]
[1773308758059,3.70959598,86.468,86.418,10.413]
[1773308758267,3.70959598,86.468,86.38,6.21184778]
[1773308758268,3.70959598,86.489,86.415,3.66575345]
[1773308759159,14.11459598,86.489,86.437,10.411]
[1773308759357,3.70959598,86.488,86.437,10.411]
[1773308759668,3.70959598,86.488,86.415,3.66575345]
[1773308760063,14.11659598,86.476,86.42,10.413]
[1773308760262,3.70959598,86.475,86.379,3.66575345]
[1773308760465,3.70959598,86.459,86.379,3.66575345]
[1773308760854,3.70959598,86.459,86.341,3.66575345]
[1773308761059,3.70959598,86.439,86.341,3.66575345]
[1773308761459,3.70959598,86.423,86.341,3.66575345]
[1773308762361,3.70959598,86.41,86.349,10.422]
[1773308763664,3.70959598,86.402,86.341,10.423]
[1773308763964,3.70959598,86.421,86.331,3.66575345]
[1773308764362,3.70959598,86.419,86.356,10.421]
[1773308765159,3.70959598,86.405,86.345,10.422]
[1773308765662,3.70959598,86.402,86.352,10.421]
[1773308765865,3.70959598,86.402,86.31,6.21184778]
[1773308765866,3.70959598,86.399,86.312,3.66575345]
[1773308766362,3.70959598,86.398,86.312,3.66575345]
[1773308767567,3.70959598,86.398,86.31,6.21184778]
[1773308767767,3.70959598,86.384,86.294,3.66575345]
[1773308768969,3.70959598,86.383,86.294,3.66575345]
[1773308769171,3.70959598,86.379,86.294,3.66575345]
[1773308770066,3.70959598,86.376,86.309,10.427]
[1773308770267,3.70959598,86.376,86.294,3.66575345]
[1773308770568,3.70959598,86.376,86.312,3.66575345]
[1773308771472,3.70959598,86.376,86.293,3.66575345]
[1773308772872,3.70959598,86.373,86.293,3.66575345]
[1773308773572,3.70959598,86.363,86.301,10.428]
[1773308773973,3.70959598,86.363,86.293,3.66575345]
[1773308774171,3.70959598,86.363,86.308,10.427]